Cogmind - Beta 16 --- EXPLORER MODE // 2026.01.09 @ 16:06:35 Player: K.K.Y. Result: Destroyed by BD-A09(R) with Subdweller Beam Cannon Performance ------------- Evolutions (0) 0 Regions Visited (3) 600 Robots Destroyed (45) 225 Value Destroyed (897) 897 Prototype IDs (0) 0 Alien Tech Used (0) 0 Bonus (0) 0 TOTAL SCORE: 1722 Bonus ------- None Cogmind --------- Core Integrity 0/250 Matter 245/300 Energy 160/160 System Corruption 0% Temperature Cool (9) Movement Walking (210) Ox1 Location -10/Subcaves Parts ------- > --- POWER (1) -------- Light Nuclear Core > --- PROPULSION (2) --- Makeshift Leg > --- UTILITY (3) ------ Medium Storage Unit Improved Terrain Scanner Terrain Scan Processor > --- WEAPON (2) ------- Slug Cannon Makeshift Axe > --- INVENTORY (10) --- Makeshift Power Source Structural Scanner Sensor Array Makeshift Light Armor Plating Makeshift Hacking Suite Barrage Gun Barrage Gun Mining Laser Multitool Peak State ------------ > --- POWER ------------ Light Nuclear Core > --- PROPULSION ------- Makeshift Leg > --- UTILITY ---------- Medium Storage Unit Improved Terrain Scanner Terrain Scan Processor > --- WEAPON ----------- Slug Cannon Makeshift Axe > --- INVENTORY -------- Makeshift Power Source Structural Scanner Sensor Array Makeshift Light Armor Plating Makeshift Hacking Suite Barrage Gun Barrage Gun Mining Laser Multitool [Rating: 23] Favorites ----------- Power Ion Engine Engine Ion Engine Power Core Light Nuclear Core Propulsion Light Treads Treads Light Treads Leg Makeshift Leg Wheel Subdweller Monowheel Utility Terrain Scan Processor Device Improved Terrain Scanner Storage Medium Storage Unit Processor Terrain Scan Processor Weapon Medium Laser Energy Gun Medium Laser Ballistic Cannon Slug Cannon Special Weapon Mining Laser Slashing Weapon Makeshift Axe Build | -11 -10 -10 -10 ------- Run | Yrd Mat Min Sub Slots Evolved 1 | . 1 . . Power . | . . . . Propulsion . | . . . . Utility 1 | . 1 . . Weapon . | . . . . Parts Attached 18 | 5 5 . 8 Power 2 | 1 . . 1 Engine 1 | 1 . . . Core 1 | . . . 1 Reactor . | . . . . Propulsion 5 | 2 1 . 2 Treads 3 | 2 1 . . Leg 1 | . . . 1 Wheel 1 | . . . 1 Hover . | . . . . Flight . | . . . . Utility 5 | . 4 . 1 Device 2 | . 2 . . Storage 1 | . . . 1 Processor 2 | . 2 . . Hackware . | . . . . Protection . | . . . . Artifact . | . . . . Weapon 6 | 2 . . 4 Energy Gun 3 | 2 . . 1 Energy Cannon . | . . . . Ballistic Gun . | . . . . Ballistic Cannon 1 | . . . 1 Launcher . | . . . . Special Weapon 1 | . . . 1 Impact Weapon . | . . . . Slashing Weapon 1 | . . . 1 Piercing Weapon . | . . . . Special Melee Weapon . | . . . . Unidentified Prototypes . | . . . . Parts Lost 5 | . . . 5 Power 1 | . . . 1 Propulsion 2 | . . . 2 Utility . | . . . . Weapon 2 | . . . 2 Highest Loss Streak 3 | . . . 3 To Critical Strikes 1 | . . . 1 Average Backups 6 | 2 4 5 8 Power 1 | . . 1 1 Propulsion . | . . . . Utility 2 | 1 2 3 2 Weapon 2 | . 1 1 3 Tool/Special . | . . . . Unused Backups 9 | . 1 . 8 Power 1 | . . . 1 Propulsion . | . . . . Utility 4 | . 1 . 3 Weapon 3 | . . . 3 Tool/Special 1 | . . . 1 Average Slot Usage (%) 88 | . 92 100 83 Engine 9 | . 12 12 7 Treads 17 | . 24 25 13 Leg 1 | . . . 1 Device 12 | . 16 12 12 Storage 7 | . . . 11 Processor 15 | . 13 25 12 Energy Gun 14 | . 24 25 8 Ballistic Cannon 2 | . . . 4 Special Weapon 1 | . . . 2 Slashing Weapon 3 | . . . 4 Peak Build Rating 23 | 5 12 12 23 Average Rating 14 | 3 10 12 16 On Entrance 7 | . 5 12 12 Avg Prop Armor Cover (%) . | . . . . Naked Turns . | . . . . Heaviest Build 26 | 8 10 9 26 Greatest Support 40 | 40 40 40 40 Greatest Overweight (x) 6 | . . . 6 Average Overweight (x) . | . . . 1 Largest Inventory Capacity 10 | 5 5 5 10 Average Capacity 7 | 5 5 5 9 Most Carried 10 | 5 5 5 10 Average Carried 7 | 2 4 5 8 Final Capacity 10 | 5 5 5 10 Final Carried 9 | 3 5 5 9 Class Distribution -------------------- 93% | Hacker-Mutant 6% | Hacker-Skirmisher Dominant Class ---------------- Hacker-Mutant | -10/Materials Hacker-Mutant | -10/Mines Hacker-Mutant | -10/Subcaves Resources | -11 -10 -10 -10 ----------- Run | Yrd Mat Min Sub Matter Collected 666 | 250 70 . 346 Remotely . | . . . . Salvage Created 1297 | 118 578 93 508 Parts 85 | 16 34 13 22 Haulers Intercepted 2 | . 2 . . Recyclers Shooed 1 | . 1 . . Parts Field Recycled . | . . . . Retrieved Matter . | . . . . Parts Self-Destructed . | . . . . Prevented . | . . . . Parts Restored . | . . . . Kills | -11 -10 -10 -10 ------- Run | Yrd Mat Min Sub Combat Hostiles Destroyed 26 | . 8 4 14 Melee 1 | . . . 1 Guns 20 | . 8 4 8 Cannons 5 | . . . 5 Classes Destroyed 12 | 2 7 . 3 Worker 2 | . 2 . . Builder 4 | . 2 2 . Tunneler 3 | 3 . . . Hauler 2 | . 2 . . Recycler 2 | 1 1 . . Mechanic 1 | . 1 . . Turret 2 | . . . 2 Watcher 3 | . 3 . . Swarmer 11 | . 4 4 3 Grunt 4 | . 4 . . Sentry 1 | . . . 1 Subdweller 10 | . . . 10 Best Kill Streak 4 | 3 4 2 4 Combat Bots Only 3 | . 2 2 3 Max Kills in Single Turn 2 | 2 2 1 1 Gunslinging . | . . . . Exploded . | . . . . Melee 1 | . . . 1 Uniques/NPCs Destroyed . | . . . . Combat | -11 -10 -10 -10 -------- Run | Yrd Mat Min Sub Hostile Shots Fired 170 | . 28 22 120 Missed 47 | . 5 8 34 Hits 123 | . 23 14 86 Projectile 123 | . 23 14 86 Critical Strikes 1 | . . . 1 Damage Taken 897 | . 150 72 675 Core 252 | . 38 9 205 Absorbed by Shields . | . . . . Ignored by Resistances 575 | . 98 51 426 Core Remaining (%) 100 | 100 . . . Volleys Fired 178 | 4 42 14 118 Largest 2 | 2 2 2 2 Hottest 200 | 90 90 90 200 Shots Fired 259 | 8 84 28 139 Gun 190 | 8 84 28 70 Cannon 51 | . . . 51 Launcher . | . . . . Special 18 | . . . 18 Kinetic 51 | . . . 51 Thermal 208 | 8 84 28 88 Explosive . | . . . . Electromagnetic . | . . . . Robot Hit Streak 32 | 5 16 32 21 Robot Miss Streak 3 | . 1 1 3 Penetration Max . | . . . . Secondary Targets 4 | . 1 . 3 Max Gunslinging Chain 1 | . 1 . 1 Shots Hit Robots 165 | 5 70 23 67 Core Hits 62 | 5 30 6 21 Critical Kills . | . . . . Critical Parts Destroyed 2 | . . . 2 Critical Strikes 13 | 1 4 1 7 Burn 9 | 1 4 1 3 Destroy 4 | . . . 4 Melee Attacks 3 | . . . 3 Impact . | . . . . Slashing 3 | . . . 3 Piercing . | . . . . Sneak Attacks . | . . . . Combat Hostiles . | . . . . Follow-up Attacks . | . . . . Damage Inflicted 2722 | 70 845 269 1538 Guns 1971 | 70 845 269 787 Cannons 656 | . . . 656 Explosions . | . . . . Melee 95 | . . . 95 Ramming . | . . . . Kinetic 656 | . . . 656 Thermal 1971 | 70 845 269 787 Explosive . | . . . . Electromagnetic . | . . . . Impact . | . . . . Slashing 95 | . . . 95 Piercing . | . . . . Highest Corruption . | . . . . Average Corruption . | . . . . Corruption Purged . | . . . . Corruption Blocked . | . . . . Overload Shots 16 | . . . 16 Effects 2 | . . . 2 Energy Bleed 2 | . . . 2 Overflow Damage 5 | . . . 5 Projectiles 5 | . . . 5 Explosions . | . . . . Melee . | . . . . Knockbacks 2 | . . . 2 Impact . | . . . . Kinetic 2 | . . . 2 Secondary . | . . . . Self-Inflicted Damage . | . . . . Shots . | . . . . Rammed . | . . . . Targets Rammed . | . . . . Kicked . | . . . . Crushed . | . . . . Highest Temperature 240 | 60 228 240 234 Average Temperature 64 | 31 64 82 57 Received Heat Transfer 384 | . 78 . 306 Siege Activations . | . . . . Martial Activations . | . . . . Shielding Activations . | . . . . Robots Disrupted . | . . . . Combat Hostiles . | . . . . Robots Corrupted . | . . . . Combat Hostiles . | . . . . Parts Fried . | . . . . Impact Corruptions . | . . . . Robots Melted . | . . . . Combat Hostiles . | . . . . Parts Melted 11 | 1 7 2 1 Heat Transferred 5546 | 272 2527 793 1954 Parts Sabotaged . | . . . . Parts Stolen . | . . . . Parts Stripped . | . . . . Power Chain Reactions . | . . . . Alert | -11 -10 -10 -10 ------- Run | Yrd Mat Min Sub Maximum Alert Level . | . . . . Low Security (%) 100 | 100 100 100 . Level 1 . | . . . . Level 2 . | . . . . Level 3 . | . . . . Level 4 . | . . . . Level 5 . | . . . . High Security . | . . . . Max Security . | . . . . Peak Influence 50 | 15 50 35 . Initial . | . . . . Average 3 | 2 5 1 . Influence Increases 568 | 20 273 110 165 Destroy 0b10 Robot/C 360 | . 160 80 120 Destroy 0b10 Robot/NC 85 | 20 55 10 . Destroy Leader 70 | . 50 20 . Successful Hack 8 | . 8 . . Lose Combat Pursuer 45 | . . . 45 Influence Decreases 568 | 20 273 110 165 Time Decay 558 | 20 273 110 155 Lost Part 10 | . . . 10 Squads Dispatched . | . . . . Investigation . | . . . . Extermination . | . . . . Reinforcement . | . . . . Assault . | . . . . Garrison . | . . . . Intercept . | . . . . Searches Triggered . | . . . . Construction Impeded . | . . . . Haulers Reinforced . | . . . . Active Scanning Responses . | . . . . Cargo Convoy Interrupts . | . . . . Stealth | -11 -10 -10 -10 --------- Run | Yrd Mat Min Sub Distress Signals . | . . . . Communications Jammed . | . . . . Distress Signals . | . . . . Times Spotted 40 | . 17 4 19 Peak Tracking Total 6 | . 4 2 6 Tactical Retreats 2 | . . . 2 Traps | -11 -10 -10 -10 ------- Run | Yrd Mat Min Sub Traps Triggered 2 | . 2 . . Indirectly . | . . . . Trap Hack Attempts . | . . . . Triggered . | . . . . Disarmed . | . . . . Reprogrammed . | . . . . Reused . | . . . . Traps Extracted . | . . . . Installed . | . . . . Triggered . | . . . . Machines | -11 -10 -10 -10 ---------- Run | Yrd Mat Min Sub Machines Disabled . | . . . . Max in Single Turn . | . . . . Machines Repaired . | . . . . Machines Dismantled . | . . . . Machines Sabotaged . | . . . . Overloaded Fab Kills . | . . . . Hacking | -11 -10 -10 -10 --------- Run | Yrd Mat Min Sub Machines Accessed 9 | . 8 . 1 Terminals 6 | . 6 . . Fabricators . | . . . . Repair Stations . | . . . . Recycling Units 2 | . 2 . . Scanalyzers . | . . . . Garrison Access . | . . . . Total Hacks 18 | . 15 . 3 Successful 13 | . 10 . 3 Failed 5 | . 5 . . Catastrophic . | . . . . Database Lockouts . | . . . . Manual 11 | . 11 . . Terminals 9 | . 9 . . Fabricators . | . . . . Repair Stations . | . . . . Recycling Units 6 | . 6 . . Scanalyzers . | . . . . Garrison Access . | . . . . Terminal Hacks 3 | . . . 3 Record 3 | . . . 3 Fabricator Hacks . | . . . . Repair Station Hacks . | . . . . Recycling Unit Hacks 2 | . 2 . . Retrieve Components 2 | . 2 . . Scanalyzer . | . . . . Garrison Access Hacks . | . . . . Unauthorized Hacks 8 | . 8 . . Terminals 6 | . 6 . . Botnet 6 | . 6 . . Fabricators . | . . . . Repair Stations . | . . . . Recycling Units 2 | . 2 . . Reject 2 | . 2 . . Scanalyzers . | . . . . Garrison Access . | . . . . Data Cores Recovered . | . . . . Used . | . . . . Hacking Detections 2 | . 2 . . Full Trace Events . | . . . . Feedback Events . | . . . . Feedback Blocked . | . . . . Robot Schematics Acquired . | . . . . Robots Built . | . . . . Authchips . | . . . . Time . | . . . . Total Robot Build Rating . | . . . . Part Schematics Acquired . | . . . . Parts Built . | . . . . Authchips . | . . . . Time . | . . . . Total Part Build Rating . | . . . . Part Studies Acquired . | . . . . Parts Repaired . | . . . . Time . | . . . . Parts Recycled . | . . . . Recycled Matter . | . . . . Retrieved Matter . | . . . . Retrieved Components 10 | . 10 . . Parts Scanalyzed . | . . . . Part Schematics Acquired . | . . . . Parts Damaged . | . . . . Bothacking | -11 -10 -10 -10 ------------ Run | Yrd Mat Min Sub Used RIF Installer . | . . . . Robots Hacked . | . . . . Non-combat . | . . . . Combat . | . . . . Robot Hacks Applied . | . . . . Relay Couplers Released . | . . . . Fabnet Peak Effective % . | . . . . Robots Rewired . | . . . . Allies Hacked . | . . . . Hacks Repelled . | . . . . Allies | -11 -10 -10 -10 -------- Run | Yrd Mat Min Sub Total Allies . | . . . . Largest Group . | . . . . Highest-Rated Group . | . . . . Highest-Rated Ally . | . . . . Total Orders . | . . . . Ally Attacks . | . . . . Total Damage . | . . . . Kills . | . . . . Allies Corrupted . | . . . . Allies Melted . | . . . . Intel | -11 -10 -10 -10 ------- Run | Yrd Mat Min Sub Active Infowar (turns) 7372 | . 1257 1419 4696 Sensors 524 | . 524 . . Terrain 7372 | . 1257 1419 4696 Robot Analysis Total . | . . . . Derelict Logs Recovered 4 | . . 1 3 Drone Launches . | . . . . Drone Recoveries . | . . . . Exploration | -11 -10 -10 -10 ------------- Run | Yrd Mat Min Sub Turns Passed 7538 | 87 1336 1419 4696 Spaces Moved 2984 | 48 741 813 1382 Core 281 | 12 . . 269 Treads 2307 | 36 741 813 717 Legs 308 | . . . 308 Wheels 88 | . . . 88 Hover . | . . . . Flight . | . . . . Fastest Speed 50 | 50 160 160 120 Average Speed 181 | 132 160 160 208 Slowest Speed 350 | 160 160 160 350 Overloaded Moves . | . . . . Propulsion Burnouts . | . . . . Robots Hopped . | . . . . Potential Cave-ins . | . . . . Cave-ins Triggered . | . . . . Exploration Rate (%) 71 | 5 98 98 84 Regions Visited 3 Branch Regions 2 Pre-discovered Areas 4 | . . . 4 Known Exits Taken 3 | 1 1 1 . Unknown Exits Taken . | . . . . Scrap Searched 7 | . . . 7 Spaces Dug 2 | . . . 2 Terrain Destroyed 5 | . . . 5 Melee . | . . . . Projectile 5 | . . . 5 AOE . | . . . . Terrain Rammed . | . . . . Walls Destroyed . | . . . . Machines Disabled . | . . . . Actions | -11 -10 -10 -10 --------- Run | Yrd Mat Min Sub Total 4798 | 63 807 903 3025 Wait 1584 | . 11 77 1496 Move 2981 | 47 740 812 1382 Hop . | . . . . Pick Up 21 | 7 4 . 10 Fast Attach 7 | 1 5 . 1 Attach 11 | 4 1 . 6 Detach 3 | . . . 3 Swap 4 | . 1 . 3 Drop 6 | . 3 . 3 Fire 178 | 4 42 14 118 Melee 3 | . . . 3 Ram . | . . . . Kick . | . . . . Crush . | . . . . Escape Stasis . | . . . . Rewire . | . . . . Trap . | . . . . Miscellaneous . | . . . . Route ------- -11/Scrapyard -10/Materials (discovered 5 exits: *Mat x3 / *Min / Sub) -10/Mines (discovered 4 exits: *Mat x2 / Exi / *Sub) -10/Subcaves (discovered 3 exits: *Mat x2 / *Rec) History --------- Turn | Location | Event 10 | -11/Scrapyard | Identified exit to Materials 10 | -11/Scrapyard | Discovered exit to Materials (range 15) 88 | -11/Scrapyard | Entered Materials 88 | -10/Materials | Evolved 1 slot: Utility x1 302 | -10/Materials | Build established: Hacker-Mutant 411 | -10/Materials | Identified exit to Mines 411 | -10/Materials | Discovered exit to Mines (range 14) 498 | -10/Materials | Identified exit to Materials 498 | -10/Materials | Discovered exit to Materials (range 16) 627 | -10/Materials | Discovered exit to Materials (range 7) 877 | -10/Materials | Discovered exit to Materials (range 16) 963 | -10/Materials | Build established: Hacker-Skirmisher 1064 | -10/Materials | Identified exit to Subcaves 1064 | -10/Materials | Discovered exit to Subcaves (range 12) 1424 | -10/Materials | Entered Mines 1451 | -10/Mines | Found a hidden stash of uninstalled traps 1489 | -10/Mines | Build established: Hacker-Mutant 1708 | -10/Mines | Received a Rocket Launcher from a helpful Derelict 1824 | -10/Mines | Identified exit to Exiles 1824 | -10/Mines | Discovered exit to Exiles (range 8) 1875 | -10/Mines | Learned Materials machine intel 1899 | -10/Mines | Discovered exit to Materials (range 11) 1947 | -10/Mines | Discovered exit to Materials (range 11) 2014 | -10/Mines | Discovered exit to Subcaves (range 14) 2843 | -10/Mines | Entered Subcaves 2844 | -10/Subcaves | Approached by a straggling Scientist 3044 | -10/Subcaves | Learned location of Zion (-6) 3044 | -10/Subcaves | Met a Zionite searching for "candidates" 3350 | -10/Subcaves | A swath of the cavern ceiling suddenly collapsed 4220 | -10/Subcaves | Identified exit to Recycling 4220 | -10/Subcaves | Discovered exit to Recycling (range 15) 4276 | -10/Subcaves | Core integrity fell below 50% 5080 | -10/Subcaves | Shifting Twisted Machinery released Sub. Optics 5095 | -10/Subcaves | Identified exit to Materials 5095 | -10/Subcaves | Discovered exit to Materials (range 10) 5118 | -10/Subcaves | Shifting Twisted Machinery released Sub. Optics 5188 | -10/Subcaves | Visited Clippyterm 5193 | -10/Subcaves | Learned location of Section 7 (-2) 5221 | -10/Subcaves | A swath of the cavern ceiling suddenly collapsed 5267 | -10/Subcaves | Discovered exit to Materials (range 14) 5762 | -10/Subcaves | Lost 3 parts (1p1n1w) 6064 | -10/Subcaves | Core integrity fell below 20% 6286 | -10/Subcaves | Shifting Twisted Machinery released Multitool 6308 | -10/Subcaves | Shifting Twisted Machinery released Sub. Beam Cannon 6635 | -10/Subcaves | Learned Materials security intel 7421 | -10/Subcaves | Shifting Twisted Machinery released Mak. Light Armor Plating 7539 | -10/Subcaves | Destroyed by BD-A09(R) with Subdweller Beam Cannon Last Messages --------------- 06924_ Acquired 10 matter. 07180_ Acquired 7 matter. 07187_ Acquired 2 matter. Mak. Light Armor Plating falls loose from the Twisted Machinery. 07441_ Acquired Mak. Light Armor Plating. 07475_ Acquired 6 matter. 07496_ Slug penetrates Twisted Machinery. 07516_ I1-DBH(R) destroyed. 07517_ Subatomizers dissect the Sub. Machine Gun. 07531_ 4L-MR0: "What, already? Ugh, fine! Just take it and go! I only just finished this one... Can't you folks let me experiment with them a little longer before you take them away? 07531_ Acquired 25 matter. 07533_ Acquired 7 matter. 07537_ Subatomizers dissect the Sub. Machine Gun. Map ----- +----------------------------------------------------+ | ##### # ###????#####?# ??? ????????? | | ##### # ########## ## ?????????????? | | # # " ### ###" #" ?? ???? ???????? | | # """" """"" #? ???????????? | | ## """ " " # ? ??? ??????? | | ### "# " ### " ### #???#?? ?????? | | # ### "#" "#" "###???? ???# ? ????? | | # #### ""# " " "##? ???? ??????? | | # ###### ## ##""#"" """##? ?? ?? ?? ?????? | | # ##### #########"## ""## ?????????? | | ###### ###?##?# """" """ ##??? ??????? | | ##### ##########???## #"" "#"### ?? ??????? | | ########??#######??### #" ""###???????? ??????? | | ###?###?#?##?###??####u# ###??? ?? ?????????? | | ############?##?#?### ## ##?# ?## ?????????? | | ##????########### ## ###? ? ?????????? | | #####??#????##?# ##? ??????????????? | | ## ##??####""??"### ## ????? ? #??????? | | #### ####??##?" ?## #####?? ??#? ????????# | | ##??# ##??##?"# ?#? ## ###?##????#??###??????#? | | ##??###?###? ?#+?? ? ?## #?#???#??????#??##???? | | ##########?#?? ?? ??# ###?#??####?##?#?????# | | ####?#???##??????##??## #???????#??###??????? | | ##??#?####??"? ???# #< & ##?##??###?????##?### | | ####??#####?"? ??# R [ ! ####?##??#????#???#?? | | #?#?#?##??#???? ??# @ ##?????????#?##?###?## | | ##?#?##?##????????# #< #?????????????###??### | | ?############ ???#" ###< ##??#?##???######?##### | | ############""##?#"???# #?????#???#?###??#?#??# | | ###?##??#### ?##?????## ??????????#?#######?## | | ################? "?#??# ????#??#?###?##?#??#? | | ###########?######?#??### #??#?#?###?#??##?#?#? | | ################?####???## #??????#?###?#??##### | | ################?###?#???### #????##??????###?#### | | ########?###############????##?????####?#???#?#### | | #######?########?######??#???#?????#?##?###?###### | | #######################???#??#???#?##?####?#?# | | ####################?####?????????##??######?# | | ###########?#######?#?##??????????#??????###?## | | ####?########?#####???##?????????#?#??#?####### | | ##############?###?#####???????#????##?#?##?## | | ### ###############?##??????????#?##?#??### | | ## ########?#####???????#?##?##?##### | | ##?##########???????????##???##?### | | ##############????????????#?#??###### | | [ ##############??????????##????#??#?##### | | ####### ########?#####??????????#?????#?#?#?#?## | | #####?#########?########?????????#?###?#??#?#?#### | | #######################???????????#??####???###### | | #######?###############????????????######?##?##### | +----------------------------------------------------+ Best States ------------- Heat Dissipation 25 Energy Generation 14 Energy Capacity 250 Matter Stores 300 Matter Capacity 300 Sight Range 16 Robot Scan Range 14 Terrain Scan Range 16 Terrain Scan Density 160 Resistance: KI 35 Resistance: TH 35 Resistance: EX 35 Resistance: EM 35 Resistance: I 35 Resistance: S 35 Resistance: P 35 Evasion (%) 50 Recoil Reduction 2 Offensive Hacking 20 Item Schematics ----------------- None Robot Schematics ------------------ None Fabricated ------------ Nothing Repaired ---------- Nothing Studied --------- None Alien Tech Used ----------------- None Achievements -------------- None Challenges ------------ None Game ------ Seed SegregatorIntegrityDisplacer Manual? 0 Play Time 00:26:23 Cumulative 270.7 hours Start 2026.01.09 @ 14:23:39 End 2026.01.09 @ 16:06:35 Sessions 1 Manual Loads 0 Difficulty Explorer Special Mode None Game No. 423 Rogue 0 Adventurer 0 Explorer 423 Win Type - Total 0 Types 0/0/0/0/0/0/0/0/0/0 Lore% 72 Gallery% 69 Achievement% 54 Wizard Run 0 Options --------- Layout 1 ASCII 0 Keyboard 0 Movement Mouse Keybinds 1 Fullscreen 1 Font 24/Smallcaps Map View 50x35 Zoom Use 0% Tactical HUD 1 Map Filters NONE Filters NONE Steam 1 RUN: 788bf01e-e06f-4c00-bcbb-277fdab0390c